[Event "Titled Tuesday Blitz April 26 Late 2022"]
[White "Rozman, Levy"]
[Black "Ezat, Mohamed"]
[WhiteFideId "2039877"]
[BlackFideId "10600906"]
[WhiteElo "2376"]
[BlackElo "2386"]
[Result "0-1"]
[Round "07"]
[TimeControl "180+1"]
[Date "2022.04.26"]
[WhiteClock "0:00:01"]
[BlackClock "0:00:09"]

1. Na3 {[%clk 0:02:31]}  e5 {[%clk 0:02:52]} 2. Nc4 {[%clk 0:02:28]}  Nc6 {[%clk 0:02:46]} 3. Na3 {[%clk 0:02:25]}  Bxa3 {[%clk 0:02:44]} 4. bxa3 {[%clk 0:02:23]}  Nf6 {[%clk 0:02:45]} 5. g3 {[%clk 0:02:12]}  O-O {[%clk 0:02:44]} 6. Bg2 {[%clk 0:02:13]}  d5 {[%clk 0:02:44]} 7. d3 {[%clk 0:01:53]}  Re8 {[%clk 0:02:43]} 8. Rb1 {[%clk 0:01:40]}  Qd6 {[%clk 0:02:34]} 9. e3 {[%clk 0:01:33]}  b6 {[%clk 0:02:30]} 10. Ne2 {[%clk 0:01:28]}  Bg4 {[%clk 0:02:24]} 11. h3 {[%clk 0:01:27]}  Bh5 {[%clk 0:02:17]} 12. g4 {[%clk 0:01:25]}  Bg6 {[%clk 0:02:17]} 13. O-O {[%clk 0:01:24]}  e4 {[%clk 0:02:14]} 14. d4 {[%clk 0:01:22]}  Nd8 {[%clk 0:02:06]} 15. a4 {[%clk 0:01:10]}  Ne6 {[%clk 0:02:02]} 16. Rb3 {[%clk 0:01:09]}  Ng5 {[%clk 0:02:00]} 17. Nf4 {[%clk 0:01:04]}  Ne6 {[%clk 0:01:57]} 18. Ne2 {[%clk 0:00:53]}  Ng5 {[%clk 0:01:54]} 19. Nf4 {[%clk 0:00:51]}  Ne6 {[%clk 0:01:54]} 20. Ba3 {[%clk 0:00:50]}  Qd7 {[%clk 0:01:53]} 21. Nxe6 {[%clk 0:00:46]}  Qxe6 {[%clk 0:01:50]} 22. a5 {[%clk 0:00:45]}  h5 {[%clk 0:01:48]} 23. g5 {[%clk 0:00:42]}  Nd7 {[%clk 0:01:44]} 24. h4 {[%clk 0:00:38]}  f6 {[%clk 0:01:38]} 25. a6 {[%clk 0:00:31]}  fxg5 {[%clk 0:01:35]} 26. hxg5 {[%clk 0:00:32]}  Qf7 {[%clk 0:01:20]} 27. Rc3 {[%clk 0:00:25]}  Rac8 {[%clk 0:01:17]} 28. Bh3 {[%clk 0:00:24]}  c6 {[%clk 0:00:47]} 29. Bd6 {[%clk 0:00:20]}  Nf8 {[%clk 0:00:43]} 30. Bxc8 {[%clk 0:00:17]}  Rxc8 {[%clk 0:00:43]} 31. Bxf8 {[%clk 0:00:12]}  Kxf8 {[%clk 0:00:41]} 32. f4 {[%clk 0:00:11]}  Bf5 {[%clk 0:00:39]} 33. Qe2 {[%clk 0:00:09]}  h4 {[%clk 0:00:38]} 34. Qf2 {[%clk 0:00:08]}  Qh5 {[%clk 0:00:37]} 35. Kh2 {[%clk 0:00:08]}  Bg4 {[%clk 0:00:35]} 36. Rg1 {[%clk 0:00:07]}  Bf3 {[%clk 0:00:34]} 37. Rb3 {[%clk 0:00:07]}  Kg8 {[%clk 0:00:31]} 38. Rbb1 {[%clk 0:00:07]}  c5 {[%clk 0:00:22]} 39. dxc5 {[%clk 0:00:03]}  Rxc5 {[%clk 0:00:22]} 40. f5 {[%clk 0:00:03]}  Qf7 {[%clk 0:00:21]} 41. f6 {[%clk 0:00:03]}  Qc7+ {[%clk 0:00:20]} 42. Kh3 {[%clk 0:00:03]}  Rxc2 {[%clk 0:00:19]} 43. Qxc2 {[%clk 0:00:01]}  Qxc2 {[%clk 0:00:17]} 44. Rbc1 {[%clk 0:00:01]}  Qf2 {[%clk 0:00:12]} 45. Rcf1 {[%clk 0:00:02]}  Qxe3 {[%clk 0:00:11]} 46. Kxh4 {[%clk 0:00:02]}  Be2 {[%clk 0:00:10]} 47. f7+ {[%clk 0:00:02]}  Kf8 {[%clk 0:00:09]} 48. Rc1 {[%clk 0:00:03]}  Qf4+ {[%clk 0:00:09]} 49. Kh3 {[%clk 0:00:03]}  Kxf7 {[%clk 0:00:09]} 50. g6+ {[%clk 0:00:02]}  Ke6 {[%clk 0:00:09]} 51. Rc6+ {[%clk 0:00:02]}  Ke5 {[%clk 0:00:10]} 52. Rgc1 {[%clk 0:00:01]}  Bf3 {[%clk 0:00:09]} 0-1


[Site "https://www.chess.com"]

[Event "Titled Tuesday Blitz April 26 Late 2022"]
[White "Sernecki, Franciszek"]
[Black "Chuemsakul, Sarocha"]
[WhiteFideId "1169297"]
[BlackFideId "6203710"]
[WhiteElo "2165"]
[BlackElo "1703"]
[Result "1-0"]
[Round "07"]
[TimeControl "180+1"]
[Date "2022.04.26"]
[WhiteClock "0:00:09"]
[BlackClock "0:00:02"]

1. e4 {[%clk 0:02:56]}  g6 {[%clk 0:02:57]} 2. d4 {[%clk 0:02:55]}  Bg7 {[%clk 0:02:58]} 3. c4 {[%clk 0:02:55]}  d6 {[%clk 0:02:56]} 4. Nc3 {[%clk 0:02:54]}  Nf6 {[%clk 0:02:55]} 5. Bg5 {[%clk 0:02:53]}  Nbd7 {[%clk 0:02:46]} 6. Be2 {[%clk 0:02:43]}  c5 {[%clk 0:02:45]} 7. d5 {[%clk 0:02:40]}  h6 {[%clk 0:02:45]} 8. Be3 {[%clk 0:02:31]}  a6 {[%clk 0:02:45]} 9. Qd2 {[%clk 0:02:30]}  Ne5 {[%clk 0:02:32]} 10. h3 {[%clk 0:02:24]}  g5 {[%clk 0:02:00]} 11. Nf3 {[%clk 0:02:20]}  Ng6 {[%clk 0:01:53]} 12. e5 {[%clk 0:02:00]}  dxe5 {[%clk 0:01:44]} 13. Bxc5 {[%clk 0:02:00]}  O-O {[%clk 0:01:30]} 14. O-O {[%clk 0:01:55]}  Bf5 {[%clk 0:01:30]} 15. Bd3 {[%clk 0:01:46]}  Bxd3 {[%clk 0:01:08]} 16. Qxd3 {[%clk 0:01:47]}  Nf4 {[%clk 0:01:08]} 17. Qe3 {[%clk 0:01:32]}  Nd7 {[%clk 0:01:07]} 18. Bb4 {[%clk 0:01:20]}  f5 {[%clk 0:00:57]} 19. Rad1 {[%clk 0:01:04]}  Kh8 {[%clk 0:00:54]} 20. b3 {[%clk 0:01:01]}  Qe8 {[%clk 0:00:40]} 21. Nd2 {[%clk 0:00:55]}  Qf7 {[%clk 0:00:35]} 22. Ne2 {[%clk 0:00:50]}  Rae8 {[%clk 0:00:23]} 23. Nxf4 {[%clk 0:00:49]}  gxf4 {[%clk 0:00:21]} 24. Qf3 {[%clk 0:00:46]}  Qg6 {[%clk 0:00:22]} 25. Kh1 {[%clk 0:00:43]}  Qg5 {[%clk 0:00:17]} 26. g4 {[%clk 0:00:37]}  e4 {[%clk 0:00:09]} 27. Qg2 {[%clk 0:00:29]}  f3 {[%clk 0:00:09]} 28. Qg1 {[%clk 0:00:29]}  Qh4 {[%clk 0:00:05]} 29. Qg3 {[%clk 0:00:28]}  Qxg3 {[%clk 0:00:02]} 30. fxg3 {[%clk 0:00:29]}  fxg4 {[%clk 0:00:03]} 31. Nxe4 {[%clk 0:00:28]}  Ne5 {[%clk 0:00:02]} 32. hxg4 {[%clk 0:00:24]}  Nxg4 {[%clk 0:00:01]} 33. Rd3 {[%clk 0:00:19]}  f2 {[%clk 0:00:01]} 34. Kg2 {[%clk 0:00:19]}  Be5 {[%clk 0:00:01]} 35. Nxf2 {[%clk 0:00:18]}  Nxf2 {[%clk 0:00:01]} 36. Rxf2 {[%clk 0:00:19]}  Rxf2+ {[%clk 0:00:02]} 37. Kxf2 {[%clk 0:00:19]}  Kg7 {[%clk 0:00:02]} 38. Rf3 {[%clk 0:00:19]}  Kg6 {[%clk 0:00:01]} 39. Bc3 {[%clk 0:00:19]}  Bxc3 {[%clk 0:00:01]} 40. Rxc3 {[%clk 0:00:20]}  Rf8+ {[%clk 0:00:02]} 41. Rf3 {[%clk 0:00:20]}  Rd8 {[%clk 0:00:02]} 42. Re3 {[%clk 0:00:21]}  Kf7 {[%clk 0:00:02]} 43. Re6 {[%clk 0:00:21]}  b5 {[%clk 0:00:02]} 44. Rxh6 {[%clk 0:00:20]}  bxc4 {[%clk 0:00:03]} 45. bxc4 {[%clk 0:00:21]}  Rc8 {[%clk 0:00:04]} 46. Rc6 {[%clk 0:00:20]}  Rb8 {[%clk 0:00:04]} 47. Rxa6 {[%clk 0:00:20]}  Rb2+ {[%clk 0:00:04]} 48. Kf3 {[%clk 0:00:20]}  Rc2 {[%clk 0:00:05]} 49. Ra4 {[%clk 0:00:17]}  Kf6 {[%clk 0:00:05]} 50. a3 {[%clk 0:00:12]}  Ke5 {[%clk 0:00:05]} 51. g4 {[%clk 0:00:11]}  Rc3+ {[%clk 0:00:04]} 52. Ke2 {[%clk 0:00:11]}  Rg3 {[%clk 0:00:03]} 53. Ra7 {[%clk 0:00:11]}  Rxg4 {[%clk 0:00:02]} 54. Rxe7+ {[%clk 0:00:11]}  Kd4 {[%clk 0:00:03]} 55. Rc7 {[%clk 0:00:10]}  Rg3 {[%clk 0:00:03]} 56. d6 {[%clk 0:00:09]}  Rxa3 {[%clk 0:00:02]} 57. d7 {[%clk 0:00:10]}  Re3+ {[%clk 0:00:02]} 58. Kf2 {[%clk 0:00:09]}  Rd3 {[%clk 0:00:02]} 59. d8=Q+ {[%clk 0:00:09]} 1-0


[Site "https://www.chess.com"]

[Event "Titled Tuesday Blitz April 26 Late 2022"]
[White "Sevian, Samuel"]
[Black "Jobava, Baadur"]
[WhiteFideId "2040506"]
[BlackFideId "13601520"]
[WhiteElo "2698"]
[BlackElo "2617"]
[Result "0-1"]
[Round "07"]
[TimeControl "180+1"]
[Date "2022.04.26"]
[WhiteClock "0:00:05"]
[BlackClock "0:01:46"]

1. b3 {[%clk 0:03:00]}  d5 {[%clk 0:03:00]} 2. Bb2 {[%clk 0:03:00]}  c6 {[%clk 0:03:00]} 3. e3 {[%clk 0:02:56]}  Nf6 {[%clk 0:03:00]} 4. c4 {[%clk 0:02:53]}  Bg4 {[%clk 0:02:58]} 5. Nf3 {[%clk 0:02:50]}  e6 {[%clk 0:02:58]} 6. h3 {[%clk 0:02:50]}  Bxf3 {[%clk 0:02:58]} 7. Qxf3 {[%clk 0:02:50]}  Nbd7 {[%clk 0:02:58]} 8. Nc3 {[%clk 0:02:46]}  g6 {[%clk 0:02:55]} 9. d4 {[%clk 0:02:45]}  Bg7 {[%clk 0:02:53]} 10. Bd3 {[%clk 0:02:46]}  O-O {[%clk 0:02:53]} 11. O-O {[%clk 0:02:45]}  Re8 {[%clk 0:02:54]} 12. Rfd1 {[%clk 0:02:44]}  Qe7 {[%clk 0:02:53]} 13. Qe2 {[%clk 0:02:43]}  a6 {[%clk 0:02:53]} 14. Rac1 {[%clk 0:02:43]}  Rad8 {[%clk 0:02:52]} 15. a3 {[%clk 0:02:43]}  h5 {[%clk 0:02:51]} 16. Qf1 {[%clk 0:02:41]}  Qd6 {[%clk 0:02:50]} 17. Bb1 {[%clk 0:02:39]}  Qb8 {[%clk 0:02:49]} 18. Ba2 {[%clk 0:02:30]}  Nb6 {[%clk 0:02:44]} 19. a4 {[%clk 0:02:25]}  Bf8 {[%clk 0:02:43]} 20. c5 {[%clk 0:02:14]}  Nbd7 {[%clk 0:02:43]} 21. b4 {[%clk 0:02:15]}  e5 {[%clk 0:02:42]} 22. b5 {[%clk 0:02:11]}  axb5 {[%clk 0:02:42]} 23. axb5 {[%clk 0:02:10]}  exd4 {[%clk 0:02:42]} 24. exd4 {[%clk 0:02:10]}  Bg7 {[%clk 0:02:41]} 25. Bb1 {[%clk 0:02:09]}  Nf8 {[%clk 0:02:41]} 26. Na2 {[%clk 0:01:47]}  Ne6 {[%clk 0:02:37]} 27. Nb4 {[%clk 0:01:47]}  Rc8 {[%clk 0:02:37]} 28. Bc2 {[%clk 0:01:44]}  Ne4 {[%clk 0:02:34]} 29. Bxe4 {[%clk 0:01:31]}  dxe4 {[%clk 0:02:34]} 30. Rc2 {[%clk 0:01:31]}  Red8 {[%clk 0:02:23]} 31. d5 {[%clk 0:01:30]}  cxd5 {[%clk 0:02:21]} 32. Bxg7 {[%clk 0:00:35]}  Kxg7 {[%clk 0:02:22]} 33. Rxd5 {[%clk 0:00:28]}  Rxd5 {[%clk 0:02:19]} 34. Nxd5 {[%clk 0:00:29]}  Qe5 {[%clk 0:02:19]} 35. Nb6 {[%clk 0:00:29]}  Rc7 {[%clk 0:02:09]} 36. c6 {[%clk 0:00:29]}  Nd4 {[%clk 0:02:03]} 37. Rc4 {[%clk 0:00:20]}  bxc6 {[%clk 0:02:02]} 38. bxc6 {[%clk 0:00:20]}  Rxc6 {[%clk 0:02:01]} 39. Rxc6 {[%clk 0:00:19]}  Nxc6 {[%clk 0:02:02]} 40. Nc4 {[%clk 0:00:20]}  Qd4 {[%clk 0:02:02]} 41. Ne3 {[%clk 0:00:20]}  Ne5 {[%clk 0:02:01]} 42. Qb1 {[%clk 0:00:20]}  Nd3 {[%clk 0:02:00]} 43. Qf1 {[%clk 0:00:20]}  h4 {[%clk 0:01:59]} 44. Qe2 {[%clk 0:00:20]}  Qa1+ {[%clk 0:01:58]} 45. Kh2 {[%clk 0:00:20]}  Qe5+ {[%clk 0:01:58]} 46. Kg1 {[%clk 0:00:20]}  Qa1+ {[%clk 0:01:50]} 47. Kh2 {[%clk 0:00:20]}  Qb2 {[%clk 0:01:50]} 48. Qxb2+ {[%clk 0:00:20]}  Nxb2 {[%clk 0:01:50]} 49. g3 {[%clk 0:00:20]}  Nd3 {[%clk 0:01:50]} 50. Kg2 {[%clk 0:00:15]}  hxg3 {[%clk 0:01:51]} 51. fxg3 {[%clk 0:00:15]}  f5 {[%clk 0:01:50]} 52. h4 {[%clk 0:00:13]}  Kf6 {[%clk 0:01:51]} 53. Kf1 {[%clk 0:00:12]}  Ke5 {[%clk 0:01:51]} 54. Ke2 {[%clk 0:00:12]}  Kd4 {[%clk 0:01:52]} 55. Ng2 {[%clk 0:00:12]}  Nc1+ {[%clk 0:01:51]} 56. Kd2 {[%clk 0:00:12]}  Nb3+ {[%clk 0:01:51]} 57. Ke2 {[%clk 0:00:12]}  Nc1+ {[%clk 0:01:46]} 58. Kd2 {[%clk 0:00:12]}  Nd3 {[%clk 0:01:47]} 59. Ke2 {[%clk 0:00:13]}  Ke5 {[%clk 0:01:47]} 60. Ke3 {[%clk 0:00:13]}  Nb4 {[%clk 0:01:47]} 61. Kf2 {[%clk 0:00:09]}  Nd5 {[%clk 0:01:48]} 62. Ke2 {[%clk 0:00:09]}  f4 {[%clk 0:01:48]} 63. Kf2 {[%clk 0:00:04]}  f3 {[%clk 0:01:47]} 64. Ne1 {[%clk 0:00:05]}  Kf5 {[%clk 0:01:45]} 65. Nxf3 {[%clk 0:00:04]}  exf3 {[%clk 0:01:45]} 66. Kxf3 {[%clk 0:00:05]}  Nf6 {[%clk 0:01:46]} 0-1


[Site "https://www.chess.com"]

[Event "Titled Tuesday Blitz April 26 Late 2022"]
[White "Shirov, Alexei"]
[Black "Paravyan, David"]
[WhiteFideId "2209390"]
[BlackFideId "4194985"]
[WhiteElo "2678"]
[BlackElo "2569"]
[Result "0-1"]
[Round "07"]
[TimeControl "180+1"]
[Date "2022.04.26"]
[WhiteClock "0:00:01"]
[BlackClock "0:00:05"]

1. e4 {[%clk 0:02:46]}  e5 {[%clk 0:02:59]} 2. Nf3 {[%clk 0:02:46]}  Nf6 {[%clk 0:03:00]} 3. Nxe5 {[%clk 0:02:45]}  d6 {[%clk 0:03:00]} 4. Nf3 {[%clk 0:02:46]}  Nxe4 {[%clk 0:03:00]} 5. d4 {[%clk 0:02:46]}  d5 {[%clk 0:03:00]} 6. Bd3 {[%clk 0:02:46]}  Bd6 {[%clk 0:03:01]} 7. O-O {[%clk 0:02:45]}  O-O {[%clk 0:03:02]} 8. c4 {[%clk 0:02:45]}  c6 {[%clk 0:03:02]} 9. Qc2 {[%clk 0:02:43]}  h6 {[%clk 0:03:01]} 10. Nc3 {[%clk 0:02:37]}  Nxc3 {[%clk 0:02:57]} 11. bxc3 {[%clk 0:02:36]}  Bg4 {[%clk 0:02:57]} 12. Ne5 {[%clk 0:02:35]}  Bxe5 {[%clk 0:02:50]} 13. dxe5 {[%clk 0:02:33]}  Nd7 {[%clk 0:02:51]} 14. h3 {[%clk 0:02:24]}  Be6 {[%clk 0:02:50]} 15. cxd5 {[%clk 0:02:21]}  Bxd5 {[%clk 0:02:41]} 16. f4 {[%clk 0:02:10]}  Nc5 {[%clk 0:02:32]} 17. Bh7+ {[%clk 0:02:09]}  Kh8 {[%clk 0:02:32]} 18. Be3 {[%clk 0:02:10]}  Nd7 {[%clk 0:01:50]} 19. c4 {[%clk 0:02:01]}  Bxc4 {[%clk 0:00:55]} 20. Qxc4 {[%clk 0:01:59]}  Kxh7 {[%clk 0:00:56]} 21. Rad1 {[%clk 0:01:59]}  Kg8 {[%clk 0:00:56]} 22. e6 {[%clk 0:01:58]}  fxe6 {[%clk 0:00:56]} 23. Qxe6+ {[%clk 0:01:51]}  Rf7 {[%clk 0:00:56]} 24. f5 {[%clk 0:01:46]}  Qe8 {[%clk 0:00:47]} 25. Bxa7 {[%clk 0:01:31]}  Qxe6 {[%clk 0:00:14]} 26. fxe6 {[%clk 0:01:29]}  Rxf1+ {[%clk 0:00:15]} 27. Kxf1 {[%clk 0:01:22]}  Nf6 {[%clk 0:00:10]} 28. Bc5 {[%clk 0:01:00]}  Nd5 {[%clk 0:00:08]} 29. Rd2 {[%clk 0:00:56]}  Re8 {[%clk 0:00:07]} 30. e7 {[%clk 0:00:35]}  b6 {[%clk 0:00:04]} 31. Bd6 {[%clk 0:00:34]}  Nxe7 {[%clk 0:00:04]} 32. Bxe7 {[%clk 0:00:30]}  Rxe7 {[%clk 0:00:04]} 33. Rd6 {[%clk 0:00:29]}  Rc7 {[%clk 0:00:05]} 34. Ke2 {[%clk 0:00:29]}  b5 {[%clk 0:00:05]} 35. Kd3 {[%clk 0:00:27]}  c5 {[%clk 0:00:06]} 36. Rb6 {[%clk 0:00:27]}  b4 {[%clk 0:00:05]} 37. Kc4 {[%clk 0:00:27]}  Ra7 {[%clk 0:00:04]} 38. Kxc5 {[%clk 0:00:23]}  Rxa2 {[%clk 0:00:05]} 39. Rxb4 {[%clk 0:00:22]}  Rxg2 {[%clk 0:00:05]} 40. Kd5 {[%clk 0:00:22]}  Re2 {[%clk 0:00:05]} 41. Rg4 {[%clk 0:00:18]}  Kf7 {[%clk 0:00:04]} 42. Kd4 {[%clk 0:00:18]}  Kf6 {[%clk 0:00:03]} 43. Kd3 {[%clk 0:00:18]}  Re8 {[%clk 0:00:04]} 44. Rf4+ {[%clk 0:00:17]}  Kg5 {[%clk 0:00:04]} 45. Rg4+ {[%clk 0:00:18]}  Kf6 {[%clk 0:00:04]} 46. Rf4+ {[%clk 0:00:18]}  Kg6 {[%clk 0:00:05]} 47. Rg4+ {[%clk 0:00:17]}  Kf7 {[%clk 0:00:06]} 48. Rf4+ {[%clk 0:00:17]}  Kg8 {[%clk 0:00:06]} 49. Rg4 {[%clk 0:00:17]}  Kh7 {[%clk 0:00:06]} 50. h4 {[%clk 0:00:16]}  g6 {[%clk 0:00:06]} 51. Ra4 {[%clk 0:00:15]}  Kg7 {[%clk 0:00:07]} 52. Ra6 {[%clk 0:00:13]}  Kf7 {[%clk 0:00:07]} 53. Ra5 {[%clk 0:00:11]}  Kf6 {[%clk 0:00:07]} 54. Rb5 {[%clk 0:00:10]}  Re5 {[%clk 0:00:08]} 55. Rb7 {[%clk 0:00:09]}  Kf5 {[%clk 0:00:07]} 56. Rh7 {[%clk 0:00:06]}  h5 {[%clk 0:00:07]} 57. Rg7 {[%clk 0:00:05]}  Re6 {[%clk 0:00:08]} 58. Rb7 {[%clk 0:00:04]}  Kg4 {[%clk 0:00:08]} 59. Rb4+ {[%clk 0:00:04]}  Kg3 {[%clk 0:00:08]} 60. Kd2 {[%clk 0:00:04]}  Kh3 {[%clk 0:00:04]} 61. Rc4 {[%clk 0:00:03]}  Kg2 {[%clk 0:00:05]} 62. Rf4 {[%clk 0:00:02]}  Kg3 {[%clk 0:00:05]} 63. Rc4 {[%clk 0:00:01]}  Re5 {[%clk 0:00:06]} 64. Kd3 {[%clk 0:00:01]}  Re7 {[%clk 0:00:04]} 65. Kd2 {[%clk 0:00:01]}  Re6 {[%clk 0:00:05]} 0-1


[Site "https://www.chess.com"]

[Event "Titled Tuesday Blitz April 26 Late 2022"]
[White "Siddharth, Jagadeesh"]
[Black "Stevens, Christian"]
[WhiteFideId "5818320"]
[BlackFideId "2604450"]
[WhiteElo "2127"]
[BlackElo "2566"]
[Result "1-0"]
[Round "07"]
[TimeControl "180+1"]
[Date "2022.04.26"]
[WhiteClock "0:00:12"]
[BlackClock "0:00:31"]

1. e4 {[%clk 0:03:00]}  c5 {[%clk 0:02:08]} 2. Nf3 {[%clk 0:02:59]}  e6 {[%clk 0:02:05]} 3. d4 {[%clk 0:02:56]}  cxd4 {[%clk 0:02:06]} 4. Nxd4 {[%clk 0:02:57]}  a6 {[%clk 0:02:06]} 5. c4 {[%clk 0:02:57]}  Qc7 {[%clk 0:02:06]} 6. Nc3 {[%clk 0:02:56]}  Nf6 {[%clk 0:02:07]} 7. a3 {[%clk 0:02:56]}  b6 {[%clk 0:02:06]} 8. Be3 {[%clk 0:02:56]}  Bb7 {[%clk 0:02:04]} 9. f3 {[%clk 0:02:56]}  Nc6 {[%clk 0:02:04]} 10. b4 {[%clk 0:02:56]}  Ne5 {[%clk 0:02:04]} 11. Rc1 {[%clk 0:02:56]}  Ng6 {[%clk 0:02:04]} 12. Qd2 {[%clk 0:02:36]}  Be7 {[%clk 0:02:03]} 13. Be2 {[%clk 0:02:36]}  Rb8 {[%clk 0:02:03]} 14. O-O {[%clk 0:02:33]}  Bd6 {[%clk 0:02:02]} 15. Kh1 {[%clk 0:02:21]}  Bxh2 {[%clk 0:01:59]} 16. f4 {[%clk 0:02:20]}  Bg3 {[%clk 0:01:58]} 17. e5 {[%clk 0:01:17]}  Ne4 {[%clk 0:01:57]} 18. Nxe4 {[%clk 0:01:14]}  Bxe4 {[%clk 0:01:58]} 19. Bf3 {[%clk 0:01:15]}  Qd8 {[%clk 0:01:57]} 20. Rfd1 {[%clk 0:00:57]}  Qh4+ {[%clk 0:01:46]} 21. Kg1 {[%clk 0:00:57]}  Qh2+ {[%clk 0:01:46]} 22. Kf1 {[%clk 0:00:57]}  Qh1+ {[%clk 0:01:32]} 23. Ke2 {[%clk 0:00:36]}  Bxf3+ {[%clk 0:01:30]} 24. Kxf3 {[%clk 0:00:37]}  Qh2 {[%clk 0:01:10]} 25. Nf5 {[%clk 0:00:37]}  exf5 {[%clk 0:01:04]} 26. Qxd7+ {[%clk 0:00:36]}  Kf8 {[%clk 0:01:04]} 27. Qd6+ {[%clk 0:00:36]}  Kg8 {[%clk 0:01:05]} 28. Qxb8+ {[%clk 0:00:36]}  Nf8 {[%clk 0:01:05]} 29. Rd8 {[%clk 0:00:27]}  g5 {[%clk 0:00:49]} 30. Rxf8+ {[%clk 0:00:12]}  Kg7 {[%clk 0:00:48]} 31. Rxh8 {[%clk 0:00:12]}  g4+ {[%clk 0:00:39]} 32. Ke2 {[%clk 0:00:12]}  Qxg2+ {[%clk 0:00:39]} 33. Kd3 {[%clk 0:00:12]}  Qe4+ {[%clk 0:00:35]} 34. Kd2 {[%clk 0:00:12]}  Qg2+ {[%clk 0:00:31]} 35. Kc3 {[%clk 0:00:12]} 1-0


[Site "https://www.chess.com"]

[Event "Titled Tuesday Blitz April 26 Late 2022"]
[White "Skliarov, Viktor"]
[Black "Jarocka, Liwia"]
[WhiteFideId "14106736"]
[BlackFideId "21807558"]
[WhiteElo "2229"]
[BlackElo "1896"]
[Result "1/2-1/2"]
[Round "07"]
[TimeControl "180+1"]
[Date "2022.04.26"]
[WhiteClock "0:00:12"]
[BlackClock "0:00:43"]

1. e4 {[%clk 0:02:58]}  c6 {[%clk 0:02:58]} 2. d4 {[%clk 0:02:57]}  d5 {[%clk 0:02:57]} 3. e5 {[%clk 0:02:58]}  c5 {[%clk 0:02:56]} 4. dxc5 {[%clk 0:02:58]}  e6 {[%clk 0:02:57]} 5. a3 {[%clk 0:02:58]}  Bxc5 {[%clk 0:02:55]} 6. b4 {[%clk 0:02:58]}  Be7 {[%clk 0:02:55]} 7. Bb2 {[%clk 0:02:56]}  f6 {[%clk 0:02:53]} 8. Nf3 {[%clk 0:02:55]}  Nc6 {[%clk 0:02:52]} 9. Bd3 {[%clk 0:02:49]}  fxe5 {[%clk 0:02:51]} 10. Nxe5 {[%clk 0:02:49]}  Nf6 {[%clk 0:02:49]} 11. Nd2 {[%clk 0:02:44]}  O-O {[%clk 0:02:47]} 12. Ndf3 {[%clk 0:02:44]}  Bd6 {[%clk 0:02:33]} 13. O-O {[%clk 0:02:40]}  Bd7 {[%clk 0:02:30]} 14. Nxd7 {[%clk 0:02:24]}  Qxd7 {[%clk 0:02:28]} 15. Re1 {[%clk 0:02:23]}  Rae8 {[%clk 0:02:27]} 16. b5 {[%clk 0:02:22]}  Nd8 {[%clk 0:02:25]} 17. Ne5 {[%clk 0:02:18]}  Qc7 {[%clk 0:02:24]} 18. c4 {[%clk 0:02:10]}  Nf7 {[%clk 0:02:23]} 19. Nxf7 {[%clk 0:02:02]}  Qxf7 {[%clk 0:02:20]} 20. cxd5 {[%clk 0:01:47]}  exd5 {[%clk 0:02:19]} 21. Qf3 {[%clk 0:01:39]}  Re6 {[%clk 0:01:44]} 22. Bf5 {[%clk 0:01:26]}  Rxe1+ {[%clk 0:01:40]} 23. Rxe1 {[%clk 0:01:25]}  Re8 {[%clk 0:01:30]} 24. Rxe8+ {[%clk 0:01:12]}  Qxe8 {[%clk 0:01:30]} 25. g3 {[%clk 0:01:11]}  Be5 {[%clk 0:01:28]} 26. Qb3 {[%clk 0:00:40]}  Bxb2 {[%clk 0:01:26]} 27. Qxb2 {[%clk 0:00:40]}  Qe7 {[%clk 0:01:26]} 28. a4 {[%clk 0:00:37]}  b6 {[%clk 0:01:26]} 29. Qd4 {[%clk 0:00:34]}  g6 {[%clk 0:01:18]} 30. Bd3 {[%clk 0:00:33]}  Kg7 {[%clk 0:01:16]} 31. h4 {[%clk 0:00:32]}  Kf7 {[%clk 0:01:11]} 32. Kg2 {[%clk 0:00:29]}  Qc5 {[%clk 0:01:10]} 33. Qe5 {[%clk 0:00:27]}  Qe7 {[%clk 0:01:10]} 34. Qb8 {[%clk 0:00:25]}  Kg7 {[%clk 0:01:02]} 35. Qc8 {[%clk 0:00:24]}  Ne4 {[%clk 0:00:57]} 36. Qc2 {[%clk 0:00:19]}  Nc5 {[%clk 0:00:55]} 37. Be2 {[%clk 0:00:16]}  Qe4+ {[%clk 0:00:51]} 38. Qxe4 {[%clk 0:00:16]}  dxe4 {[%clk 0:00:52]} 39. Bd1 {[%clk 0:00:16]}  Kf6 {[%clk 0:00:51]} 40. Kf1 {[%clk 0:00:17]}  Ke5 {[%clk 0:00:51]} 41. Ke2 {[%clk 0:00:17]}  Kd4 {[%clk 0:00:52]} 42. Kd2 {[%clk 0:00:18]}  h6 {[%clk 0:00:52]} 43. Bc2 {[%clk 0:00:17]}  g5 {[%clk 0:00:52]} 44. hxg5 {[%clk 0:00:17]}  hxg5 {[%clk 0:00:53]} 45. Bd1 {[%clk 0:00:17]}  Nd3 {[%clk 0:00:53]} 46. Ke2 {[%clk 0:00:15]}  Nb2 {[%clk 0:00:52]} 47. Bc2 {[%clk 0:00:15]}  Nc4 {[%clk 0:00:51]} 48. f3 {[%clk 0:00:11]}  exf3+ {[%clk 0:00:50]} 49. Kxf3 {[%clk 0:00:12]}  Ne5+ {[%clk 0:00:49]} 50. Ke2 {[%clk 0:00:13]}  Kc3 {[%clk 0:00:48]} 51. Bd1 {[%clk 0:00:13]}  Kd4 {[%clk 0:00:48]} 52. Bc2 {[%clk 0:00:13]}  Nd7 {[%clk 0:00:45]} 53. Kf3 {[%clk 0:00:12]}  Ne5+ {[%clk 0:00:43]} 54. Ke2 {[%clk 0:00:12]} 1/2-1/2


[Site "https://www.chess.com"]